{"text_format":"3","workbook":"xlsx","n_sheets":4,"sheets":["סיכום","נכסים","התחייבויות","קטגוריות"],"not_rendered":{"defined_names":10},"read":"whole","date_system":"1900"}

{"sheet":"סיכום","index":0,"n_rows":12,"n_cols":4,"rows_kept":12}
[null,"מאזן"]
[null,null,{"$f":"\"FY-\"&YEAR(TODAY())-1","v":"FY-2016"},{"$f":"\"FY-\"&YEAR(TODAY())","v":"FY-2017"}]
[null,"סוג נכס","השנה הקודמת","השנה הנוכחית"]
[null,"רכוש שוטף",{"$f":"SUMIFS(נכסים[השנה הקודמת],נכסים[סוג נכס],לוח_מחוונים[[#This Row],[סוג נכס]])+SUMIFS(התחייבויות[השנה הקודמת],התחייבויות[סוג התחייבות],לוח_מחוונים[[#This Row],[סוג נכס]])","v":600},{"$f":"SUMIFS(נכסים[השנה הנוכחית],נכסים[סוג נכס],לוח_מחוונים[[#This Row],[סוג נכס]])+SUMIFS(התחייבויות[השנה הנוכחית],התחייבויות[סוג התחייבות],לוח_מחוונים[[#This Row],[סוג נכס]])","v":600}]
[null,"רכוש קבוע",{"$f":"SUMIFS(נכסים[השנה הקודמת],נכסים[סוג נכס],לוח_מחוונים[[#This Row],[סוג נכס]])+SUMIFS(התחייבויות[השנה הקודמת],התחייבויות[סוג התחייבות],לוח_מחוונים[[#This Row],[סוג נכס]])","v":{"v":-100,"d":"-100 "}},{"$f":"SUMIFS(נכסים[השנה הנוכחית],נכסים[סוג נכס],לוח_מחוונים[[#This Row],[סוג נכס]])+SUMIFS(התחייבויות[השנה הנוכחית],התחייבויות[סוג התחייבות],לוח_מחוונים[[#This Row],[סוג נכס]])","v":{"v":-85,"d":"-85 "}}]
[null,"רכוש אחר",{"$f":"SUMIFS(נכסים[השנה הקודמת],נכסים[סוג נכס],לוח_מחוונים[[#This Row],[סוג נכס]])+SUMIFS(התחייבויות[השנה הקודמת],התחייבויות[סוג התחייבות],לוח_מחוונים[[#This Row],[סוג נכס]])","v":0},{"$f":"SUMIFS(נכסים[השנה הנוכחית],נכסים[סוג נכס],לוח_מחוונים[[#This Row],[סוג נכס]])+SUMIFS(התחייבויות[השנה הנוכחית],התחייבויות[סוג התחייבות],לוח_מחוונים[[#This Row],[סוג נכס]])","v":0}]
[null,"התחייבויות שוטפות",{"$f":"SUMIFS(נכסים[השנה הקודמת],נכסים[סוג נכס],לוח_מחוונים[[#This Row],[סוג נכס]])+SUMIFS(התחייבויות[השנה הקודמת],התחייבויות[סוג התחייבות],לוח_מחוונים[[#This Row],[סוג נכס]])","v":500},{"$f":"SUMIFS(נכסים[השנה הנוכחית],נכסים[סוג נכס],לוח_מחוונים[[#This Row],[סוג נכס]])+SUMIFS(התחייבויות[השנה הנוכחית],התחייבויות[סוג התחייבות],לוח_מחוונים[[#This Row],[סוג נכס]])","v":350}]
[null,"התחייבויות לזמן ארוך",{"$f":"SUMIFS(נכסים[השנה הקודמת],נכסים[סוג נכס],לוח_מחוונים[[#This Row],[סוג נכס]])+SUMIFS(התחייבויות[השנה הקודמת],התחייבויות[סוג התחייבות],לוח_מחוונים[[#This Row],[סוג נכס]])","v":0},{"$f":"SUMIFS(נכסים[השנה הנוכחית],נכסים[סוג נכס],לוח_מחוונים[[#This Row],[סוג נכס]])+SUMIFS(התחייבויות[השנה הנוכחית],התחייבויות[סוג התחייבות],לוח_מחוונים[[#This Row],[סוג נכס]])","v":0}]
[null,"הון בעלים",{"$f":"SUMIFS(נכסים[השנה הקודמת],נכסים[סוג נכס],לוח_מחוונים[[#This Row],[סוג נכס]])+SUMIFS(התחייבויות[השנה הקודמת],התחייבויות[סוג התחייבות],לוח_מחוונים[[#This Row],[סוג נכס]])","v":0},{"$f":"SUMIFS(נכסים[השנה הנוכחית],נכסים[סוג נכס],לוח_מחוונים[[#This Row],[סוג נכס]])+SUMIFS(התחייבויות[השנה הנוכחית],התחייבויות[סוג התחייבות],לוח_מחוונים[[#This Row],[סוג נכס]])","v":350}]
[null,"סה\"כ נכסים",{"$f":"נכסים[[#Totals],[השנה הקודמת]]","v":500},{"$f":"נכסים[[#Totals],[השנה הנוכחית]]","v":515}]
[null,"סה\"כ התחייבויות והון עצמי",{"$f":"התחייבויות[[#Totals],[השנה הקודמת]]","v":500},{"$f":"התחייבויות[[#Totals],[השנה הנוכחית]]","v":700}]
[null,"יתרה",{"$f":"C10-C11","v":0},{"$f":"D10-D11","v":{"v":-185,"d":"-185 "}}]

{"sheet":"נכסים","index":1,"n_rows":14,"n_cols":5,"rows_kept":14}
[null,"נכסים"]
[{"$nulls":3},{"$f":"FY_YEAR","v":"FY-2016"},{"$f":"FY_YEAR_2","v":"FY-2017"}]
[null,"סוג נכס","תיאור","השנה הקודמת","השנה הנוכחית"]
[null,"רכוש שוטף","מזומנים",600,600]
[null,"רכוש שוטף","השקעות"]
[null,"רכוש שוטף","מלאי"]
[null,"רכוש שוטף","חשבונות חייבים"]
[null,"רכוש שוטף","הוצאות מראש"]
[null,"רכוש קבוע","בניינים וציוד"]
[null,"רכוש קבוע","שיפורים במושכר"]
[null,"רכוש קבוע","הון והשקעות אחרות"]
[null,"רכוש קבוע","בניכוי פחת נצבר (ערך שלילי)",{"v":-100,"d":"-100 "},{"v":-85,"d":"-85 "}]
[null,"רכוש אחר","צדקה"]
[null,"סה\"כ נכסים",null,{"$f":"SUBTOTAL(109,נכסים[השנה הקודמת])","v":500},{"$f":"SUBTOTAL(109,נכסים[השנה הנוכחית])","v":515}]

{"sheet":"התחייבויות","index":2,"n_rows":12,"n_cols":5,"rows_kept":12}
[null,"התחייבויות"]
[{"$nulls":3},{"$f":"FY_YEAR","v":"FY-2016"},{"$f":"FY_YEAR_2","v":"FY-2017"}]
[null,"סוג התחייבות","תיאור","השנה הקודמת","השנה הנוכחית"]
[null,"התחייבויות שוטפות","חשבונות זכאים",null,350]
[null,"התחייבויות שוטפות","שכר שנצבר"]
[null,"התחייבויות שוטפות","פיצויים שנצברו",500]
[null,"התחייבויות שוטפות","מס הכנסה לתשלום"]
[null,"התחייבויות שוטפות","הכנסות צפויות"]
[null,"התחייבויות לזמן ארוך","משכנתה לתשלום"]
[null,"הון בעלים","השקעת הון",null,350]
[null,"הון בעלים","יתרת רווח שלא יועדה שנצברה"]
[null,"סה\"כ התחייבויות והון עצמי",null,{"$f":"SUBTOTAL(109,התחייבויות[השנה הקודמת])","v":500},{"$f":"SUBTOTAL(109,התחייבויות[השנה הנוכחית])","v":700}]

{"sheet":"קטגוריות","index":3,"n_rows":9,"n_cols":2,"rows_kept":9}
[null,"קטגוריות"]
[]
[null,"קטגוריות"]
[null,"רכוש שוטף"]
[null,"רכוש קבוע"]
[null,"רכוש אחר"]
[null,"התחייבויות שוטפות"]
[null,"התחייבויות לזמן ארוך"]
[null,"הון בעלים"]